bitfinex/quotes_ETHUSD_20250904
["timestamp","ask_amount","ask_price","bid_price","bid_amount"]
[1757005993967,3.922,4318.2,4318.1,0.4502]
[1757005994177,3.922,4318.2,4318.1,0.7574]
[1757005994391,0.117,4318.3,4318.1,3.07323335]
[1757005994688,0.117,4318.3,4318.2,3.11040311]
[1757005994904,4.039,4318.3,4318.2,3.11040311]
[1757005995193,4.039,4318.3,4318.2,3.41760311]
[1757005995388,0.001,4318.3,4318.2,3.41760311]
[1757005995582,3.923,4318.3,4318.2,3.41760311]
[1757005995779,3.923,4318.3,4318.2,3.73400311]
[1757005996289,3.923,4318.3,4318.2,4.43012582]
[1757005996796,3.923,4318.3,4318.2,4.22972582]
[1757005998700,3.923,4318.3,4318.2,3.53360311]
[1757005999088,3.923,4318.3,4318.2,3.73400311]
[1757005999597,3.923,4318.3,4318.2,3.53360311]
[1757005999964,3.923,4318.3,4318.2,9.73360311]
[1757006000191,0.001,4318.3,4318.2,9.73360311]
[1757006000396,3.923,4318.3,4318.2,9.28340311]
[1757006000587,3.923,4318.3,4318.2,9.73360311]
[1757006001123,3.923,4318.3,4318.2,15.59923478]
[1757006001682,0.001,4318.3,4318.2,15.59923478]
[1757006002808,0.001,4318.3,4318.2,9.28340311]
[1757006003105,0.69,4318.3,4318.2,0.34442339]
[1757006003287,0.806,4318.3,4318.1,2.31979699]
[1757006003477,4.3866,4318.2,4318.1,0.004]
[1757006003979,4.6122,4318.2,4318.1,0.004]
[1757006005294,4.6122,4318.2,4318.1,2.31983335]
[1757006007412,3.921,4318.2,4318.1,2.62703335]
[1757006007616,4.61,4318.2,4318.1,0.004]
[1757006008513,4.61,4318.2,4318.1,2.31983335]
[1757006008706,4.3866,4318.2,4318.1,2.31983335]
[1757006009018,0.117,4318.3,4318.2,2.31577972]
[1757006009187,4.038,4318.3,4318.2,2.31577972]
[1757006009720,4.727,4318.3,4318.1,0.004]
[1757006009919,0.4656,4318.2,4318.1,0.004]
[1757006010314,0.6912,4318.2,4318.1,0.004]
[1757006010494,1.141,4318.2,4318.1,0.004]
[1757006011320,0.6912,4318.2,4318.1,0.004]
[1757006013215,1.141,4318.2,4318.1,0.004]
[1757006014115,0.6912,4318.2,4318.1,0.004]
[1757006015699,1.141,4318.2,4318.1,0.004]
[1757006016508,3.45677972,4318.2,4318.1,0.004]
[1757006019136,4.4611668,4318.2,4318.1,0.004]
[1757006019335,4.43792543,4318.2,4318.1,0.004]
[1757006020042,7.4611668,4318.2,4318.1,0.004]
[1757006020239,7.43792543,4318.2,4318.1,0.004]
[1757006020943,7.43892543,4318.2,4318.1,0.004]
[1757006025945,6.99312543,4318.2,4318.1,0.004]
[1757006026140,18.2645023,4318.2,4318.1,0.004]
[1757006029142,2.31599425,4317.8,4317.7,0.004]
[1757006029343,2.31620882,4317.4,4317.3,1e-08]
[1757006029536,16.51272706,4317.4,4317.3,1e-08]
[1757006029731,17.42198569,4317.4,4317.3,1e-08]
[1757006030334,2.3164771,4316.9,4315.8,0.029]
[1757006030543,17.98819534,4316.9,4315.8,0.029]
[1757006030832,19.12925397,4316.9,4315.8,0.029]
[1757006031235,19.2432045,4316.9,4315.8,0.029]
[1757006034665,18.8015045,4316.9,4315.8,0.4868]
[1757006034964,20.22435021,4316.9,4316.0,0.4578]
[1757006035644,20.22435021,4316.9,4315.8,0.029]
[1757006035845,20.22435021,4316.9,4316.0,0.4578]
[1757006037736,8.95717334,4316.9,4316.0,0.4578]
[1757006037936,19.78265021,4316.9,4316.0,0.4578]
[1757006039250,19.78265021,4316.9,4316.2,0.4578]
[1757006040038,19.78265021,4316.9,4316.3,0.004]
[1757006040646,20.22435021,4316.9,4316.3,0.004]
[1757006041036,8.0594771,4316.9,4316.8,0.7768]
[1757006041237,11.0594771,4316.9,4316.8,0.7768]
[1757006041843,8.0594771,4316.9,4316.8,0.7768]
[1757006042165,11.0594771,4316.9,4316.8,0.7768]
[1757006042370,8.0594771,4316.9,4316.8,0.7768]
[1757006042869,11.0594771,4316.9,4316.8,0.7768]
[1757006046204,13.15334624,4316.9,4316.8,0.029]
[1757006046752,12.43504624,4316.9,4316.8,0.319]
[1757006047292,12.92374624,4316.9,4316.8,0.319]
[1757006047583,12.92374624,4316.9,4316.8,0.029]
[1757006048369,13.15334624,4316.9,4316.8,0.029]
[1757006048758,12.92374624,4316.9,4316.8,0.029]
[1757006049376,13.15334624,4316.9,4316.8,0.029]
[1757006049605,13.59924624,4316.9,4316.8,0.029]
[1757006050079,12.43404624,4316.9,4316.8,0.7767]
[1757006050265,7.1394771,4316.9,4316.8,0.7767]
[1757006050580,11.7472771,4316.9,4316.8,0.029]
[1757006050767,11.0584771,4316.9,4316.8,0.029]
[1757006050972,11.0584771,4316.9,4316.8,0.7767]
[1757006051283,7.1394771,4316.9,4316.8,0.7767]
[1757006051485,11.0584771,4316.9,4316.8,0.3212]
[1757006052180,11.0584771,4316.9,4316.8,0.7767]
[1757006052751,11.0584771,4316.9,4316.8,0.3212]
[1757006052981,11.0584771,4316.9,4316.8,0.7767]
[1757006053361,11.0584771,4316.9,4316.8,0.3212]
[1757006054078,7.1394771,4316.9,4316.8,0.7767]
[1757006054265,11.0584771,4316.9,4316.8,0.7767]
[1757006054874,7.1394771,4316.9,4316.8,0.7767]
[1757006055072,11.0584771,4316.9,4316.8,0.7767]
[1757006055684,7.1394771,4316.9,4316.8,0.7767]
[1757006055883,11.0584771,4316.9,4316.8,0.7767]
[1757006056866,7.1394771,4316.9,4316.8,0.7767]
[1757006057182,11.0594771,4316.9,4316.8,0.7767]
[1757006057584,7.1404771,4316.9,4316.8,0.7767]
[1757006057762,8.0584771,4316.9,4316.8,0.7767]
[1757006057963,8.0584771,4316.9,4316.8,0.3212]
[1757006058690,8.0584771,4316.9,4316.8,0.7767]
[1757006059955,15.65275397,4316.9,4316.8,0.029]
[1757006060154,20.48764978,4316.9,4316.8,0.029]
[1757006060884,20.95704978,4316.9,4316.8,0.029]
[1757006062792,20.48764978,4316.9,4316.8,0.029]
[1757006062969,25.82464978,4316.9,4316.8,0.029]
[1757006063674,26.29404978,4316.9,4316.8,0.029]
[1757006069813,25.61874978,4316.9,4316.8,0.3212]
[1757006070179,25.61874978,4316.9,4316.8,0.029]
[1757006070380,25.82464978,4316.9,4316.8,0.029]
[1757006072420,18.23037291,4316.9,4316.8,0.3212]
[1757006072618,18.23037291,4316.9,4316.8,0.7767]
[1757006073178,18.23037291,4316.9,4316.8,0.3212]
[1757006073734,18.71327291,4316.9,4316.8,0.029]
[1757006074010,26.29404978,4316.9,4316.8,1e-08]
[1757006074788,26.29404978,4316.9,4316.8,0.00400001]
[1757006075094,25.82464978,4316.9,4316.8,0.00400001]
[1757006075604,19.00647291,4316.9,4316.8,0.00400001]
[1757006075810,25.91194978,4316.9,4316.8,0.00400001]
[1757006079512,24.87938609,4316.9,4316.8,0.00400001]
[1757006081912,24.58618609,4316.9,4316.8,0.00400001]
[1757006082223,25.26238609,4316.9,4316.8,0.00400001]
[1757006082422,24.88028609,4316.9,4316.8,0.00400001]
[1757006083705,2.31669176,4316.5,4316.4,0.004]
[1757006083911,5.31674543,4316.4,4316.3,1e-08]
[1757006084228,6.19384543,4316.4,4316.3,1e-08]
[1757006085502,5.89884543,4316.4,4316.3,1e-08]
[1757006085835,7.73374124,4316.4,4316.3,1e-08]
[1757006086139,7.94834124,4316.4,4316.3,1e-08]
[1757006088258,11.86684124,4316.4,4316.3,1e-08]
[1757006091621,5.31689031,4316.2,4315.8,0.029]
[1757006091819,11.18992701,4315.9,4315.8,0.029]
[1757006092048,16.09920026,4315.9,4315.8,0.029]
[1757006092257,5.99698708,4315.9,4315.8,0.8074]
[1757006092428,0.116,4315.9,4315.8,1.0078]
[1757006092759,7.031,4315.9,4315.8,1.0078]
[1757006094156,1.708,4316.1,4315.8,3.32486751]
[1757006094359,1.708,4316.1,4316.0,8.18987332]
[1757006094525,5.623,4316.1,4316.0,9.16867332]
[1757006094940,5.623,4316.1,4316.0,3.29576014]
[1757006095142,5.739,4316.1,4316.0,3.29576014]
[1757006095654,5.739,4316.1,4316.0,0.9788]
[1757006095823,5.739,4316.1,4316.0,0.7784]
[1757006097357,11.61191318,4316.1,4316.0,0.7784]
[1757006097860,13.92881964,4316.1,4316.0,0.7784]
[1757006098364,11.61191318,4316.1,4316.0,0.7784]
[1757006098656,5.739,4316.1,4316.0,0.7784]
[1757006100159,8.05590646,4316.1,4316.0,0.7784]
[1757006100370,11.05590646,4316.1,4316.0,0.3139]
[1757006100535,16.92881964,4316.1,4316.0,0.3139]
[1757006100735,2.31701383,4315.9,4315.8,0.029]
[1757006100948,9.23201383,4315.9,4315.8,0.029]
[1757006101261,0.116,4315.9,4315.8,0.5433]
[1757006101462,3.654,4315.9,4315.8,2.86036751]
[1757006101663,0.116,4315.9,4315.8,3.84302168]
[1757006101870,1.708,4316.1,4316.0,2.31696014]
[1757006102168,1.708,4316.1,4316.0,3.29576014]
[1757006102767,5.622,4316.1,4316.0,3.29576014]
[1757006102967,5.622,4316.1,4316.0,3.91175832]
[1757006104041,5.622,4316.1,4316.0,1.39439818]
[1757006104240,5.622,4316.1,4316.0,3.09536014]
[1757006104644,5.622,4316.1,4316.0,0.7784]
[1757006104861,5.622,4316.1,4316.0,0.3139]
[1757006105060,5.622,4316.1,4316.0,0.7784]
[1757006106772,5.622,4316.1,4316.0,3.29576014]
[1757006106982,5.622,4316.1,4316.0,4.44723254]
[1757006107867,3.914,4316.1,4316.0,4.44723254]
[1757006108045,3.915,4316.1,4316.0,4.44723254]
[1757006108369,0.001,4316.1,4316.0,4.44723254]
[1757006110350,0.001,4316.1,4316.0,10.32014572]
[1757006110955,0.001,4316.1,4316.0,16.52014572]
[1757006111151,0.001,4316.1,4316.0,16.31974572]
[1757006111381,0.001,4316.1,4316.0,10.44683254]
[1757006111781,0.001,4316.1,4316.0,1.9298724]
[1757006111984,0.001,4316.1,4316.0,4.24683254]
[1757006113686,0.001,4316.1,4316.0,10.11974572]
[1757006114493,0.001,4316.1,4316.0,4.24683254]
[1757006115788,0.001,4316.1,4316.0,1.9298724]
[1757006116167,0.001,4316.1,4316.0,4.24683254]
[1757006116793,0.001,4316.1,4316.0,10.11974572]
[1757006118564,0.001,4316.1,4316.0,20.5190589]
[1757006118891,0.001,4316.1,4316.0,21.21547734]
[1757006119689,0.001,4316.1,4316.0,17.00547734]
[1757006121298,0.001,4316.1,4316.0,23.20547734]
[1757006122697,0.001,4316.6,4316.5,2.31669176]
[1757006122910,0.001,4316.6,4316.5,12.58711736]
[1757006123112,0.001,4316.6,4316.5,13.63605045]
[1757006123402,0.001,4316.6,4316.5,19.83605045]
[1757006124879,0.001,4316.6,4316.5,19.63565045]
[1757006125921,0.001,4316.6,4316.5,19.7284931]
[1757006126512,0.001,4316.6,4316.5,9.94457992]
[1757006126712,0.001,4316.6,4316.5,19.7284931]
[1757006128810,0.001,4316.6,4316.5,8.8617931]
[1757006128811,0.7384,4316.6,4316.5,8.8617931]
[1757006129003,0.7384,4316.6,4316.5,8.76895045]
[1757006129203,0.4916,4316.6,4316.5,8.76895045]
[1757006129720,0.001,4316.6,4316.5,9.05745045]
[1757006129926,0.7384,4316.6,4316.4,6.2]
[1757006130221,0.4906,4316.5,4316.3,2.31678187]
[1757006130424,0.2486,4316.4,4316.1,2.31690646]
[1757006130713,0.2486,4316.4,4316.0,0.116]
[1757006130714,0.4906,4316.3,4316.0,2.31694109]
[1757006130922,0.2504,4316.1,4316.0,2.31694109]
[1757006131219,0.4906,4316.1,4316.0,2.31694109]
[1757006131415,0.4906,4316.4,4316.2,2.31682513]
[1757006131624,0.7428,4316.3,4316.2,2.31682513]
[1757006131928,0.4906,4316.3,4316.2,2.31682513]
[1757006132090,0.7374,4316.3,4316.2,2.31682513]
[1757006133027,0.7392,4316.3,4316.2,2.31682513]
[1757006133220,0.7392,4316.3,4315.8,0.4962]
[1757006133221,0.7392,4316.3,4315.8,2.34606638]
[1757006133520,0.4906,4316.2,4316.1,2.31690259]
[1757006133821,0.741,4316.2,4316.1,2.31690259]
[1757006134391,0.741,4316.2,4315.8,0.029]
[1757006134696,0.4906,4316.1,4316.0,2.31696014]
[1757006135126,1.0347,4316.6,4316.0,2.60545997]
[1757006135425,4.5176,4316.6,4316.5,2.31669176]
[1757006135625,0.6076,4316.6,4316.4,2.31673368]
[1757006135793,0.6076,4316.6,4316.5,2.31669176]
[1757006135993,0.8544,4316.6,4316.3,2.31675778]
[1757006136325,0.4906,4316.5,4316.4,2.31674543]
[1757006136487,0.117,4316.6,4316.5,2.60519176]
[1757006136690,0.117,4316.6,4316.5,3.07239176]
[1757006136691,0.001,4316.6,4316.5,3.07239176]
[1757006137492,0.001,4316.6,4316.5,3.09555867]
[1757006137692,0.001,4316.6,4316.5,3.21155867]
[1757006137897,0.001,4316.6,4316.5,9.38946664]
[1757006138097,0.001,4316.6,4316.5,9.36629973]
[1757006138920,0.001,4316.6,4316.5,15.56629973]
[1757006140635,0.001,4316.6,4316.5,15.65914777]
[1757006141110,0.001,4316.6,4316.5,15.85954777]
[1757006141515,0.001,4316.6,4316.5,31.91964637]
[1757006142044,0.001,4316.6,4316.5,27.70964637]
[1757006151638,0.001,4317.4,4316.9,2.3164771]
[1757006151949,0.001,4317.4,4317.3,14.28236107]
[1757006152151,0.001,4317.4,4317.3,18.47986107]
[1757006152455,0.001,4317.4,4317.3,18.95346107]
[1757006153440,0.001,4317.4,4317.3,14.00430304]
[1757006164596,0.001,4317.4,4317.3,14.00230304]
[1757006164772,0.001,4317.4,4317.3,15.83731675]
[1757006165101,1e-08,4317.9,4317.4,2.31620882]
[1757006165414,0.026,4318.8,4318.6,2.31556522]
[1757006165564,0.026,4318.8,4318.6,6.22156522]
[1757006165565,0.4429,4318.7,4318.6,6.22156522]
[1757006165766,0.6786,4318.7,4318.6,6.33756522]
[1757006165967,1.167,4318.7,4318.6,7.43445253]
[1757006166298,1e-08,4318.8,4318.7,2.31551161]
[1757006166596,1e-08,4318.8,4318.7,2.51556384]
[1757006166898,1e-08,4318.8,4318.7,4.21800953]
[1757006167083,1e-08,4318.8,4318.7,4.50750953]
[1757006167467,1e-08,4318.8,4318.7,4.21800953]
[1757006167664,1e-08,4318.8,4318.7,4.50750953]
[1757006168395,1e-08,4318.8,4318.7,4.21800953]
[1757006168902,1e-08,4318.8,4318.7,4.19485442]
[1757006169478,1e-08,4318.8,4318.7,4.21800953]
[1757006170164,0.70850001,4318.8,4318.7,4.0179573]
[1757006170368,0.70850001,4318.8,4318.7,2.31551161]
[1757006170891,1.14840001,4318.8,4318.7,2.31551161]
[1757006171291,0.70850001,4318.8,4318.7,2.31551161]
[1757006171475,0.70850001,4318.8,4318.7,2.33866672]
[1757006171676,0.70850001,4318.8,4318.7,9.23960729]
[1757006171889,0.70850001,4318.8,4318.7,11.32238484]
[1757006172801,1.14840001,4318.8,4318.7,4.42144427]
[1757006173006,1.14840001,4318.8,4318.7,2.31551161]
[1757006177514,0.70850001,4318.8,4318.7,2.31551161]
[1757006177680,0.70850001,4318.8,4318.7,2.43151161]
[1757006178273,0.70850001,4318.8,4318.7,6.33551161]
[1757006179594,1e-08,4318.8,4318.7,6.62991161]
[1757006179989,1e-08,4318.8,4318.7,6.33551161]
[1757006182091,1e-08,4318.8,4318.7,9.16430798]
[1757006182485,1e-08,4318.8,4318.7,15.60074855]
[1757006183217,1e-08,4318.8,4318.7,16.06524855]
[1757006183606,1e-08,4318.8,4318.7,16.15803455]
[1757006186905,1e-08,4318.8,4318.7,15.69353455]
[1757006187537,0.22940001,4318.8,4318.7,7.93650798]
[1757006187742,1e-08,4318.8,4318.7,7.93650798]
[1757006188037,1e-08,4318.8,4318.7,8.23090798]
[1757006188336,1e-08,4318.8,4318.7,8.69880798]
[1757006190148,1e-08,4318.8,4318.7,8.23090798]
[1757006190509,1e-08,4318.8,4318.7,7.93650798]
[1757006191455,1e-08,4318.8,4318.7,8.69880798]
[1757006192725,1e-08,4318.8,4318.7,8.23090798]
[1757006193141,1e-08,4318.8,4318.7,8.69880798]
[1757006194363,1e-08,4318.8,4318.7,9.16330798]
[1757006194526,1e-08,4318.8,4318.7,9.25609398]
[1757006196970,1e-08,4318.8,4318.7,8.79159398]
[1757006197967,0.001,4319.0,4318.8,6.52545798]
[1757006198258,0.001,4319.0,4318.8,9.26126595]
[1757006198457,0.001,4319.0,4318.8,9.55566595]
[1757006199048,0.001,4319.0,4318.8,9.08776595]
[1757006200831,0.001,4319.0,4318.8,8.79336595]
[1757006201032,0.001,4319.0,4318.9,2.31540438]
[1757006201231,0.001,4319.0,4318.9,13.96918972]
[1757006201431,0.1,4319.0,4318.9,12.92857159]
[1757006202068,0.001,4319.0,4318.9,12.92857159]
[1757006202444,0.1,4319.0,4318.9,12.92857159]
[1757006202643,0.5933,4319.0,4318.9,12.92857159]
[1757006203846,0.5933,4319.0,4318.9,17.13857158]
[1757006204051,0.4943,4319.0,4318.9,17.13857158]
[1757006204871,0.5933,4319.0,4318.9,11.27824914]
[1757006205058,0.5933,4319.0,4318.9,17.13857158]
[1757006207044,0.4943,4319.0,4318.9,17.13857158]
[1757006208946,0.5933,4319.0,4318.9,7.37724914]
[1757006209274,0.001,4319.3,4319.2,2.31524356]
[1757006209578,0.001,4319.3,4319.2,6.21524356]
[1757006209778,0.0047,4319.3,4319.2,8.59915153]
[1757006209948,0.0047,4319.3,4319.2,12.80915152]
[1757006210963,0.0047,4319.3,4319.2,18.66947396]
[1757006211795,0.498,4319.3,4319.2,18.66947396]
[1757006212645,0.498,4319.3,4319.2,19.16747396]
[1757006213150,0.0047,4319.3,4319.2,19.16747396]
[1757006213974,0.0047,4319.3,4319.2,20.44067396]
[1757006213975,0.001,4319.3,4319.2,20.44067396]
[1757006214390,0.001,4319.3,4319.2,19.94527396]
[1757006215499,0.001,4319.3,4319.2,20.44067396]
[1757006217097,0.001,4319.3,4319.2,16.23067397]
[1757006217505,1e-08,4319.8,4319.7,2.31497557]
[1757006217811,1e-08,4319.8,4319.7,12.19029801]
[1757006218191,1e-08,4319.8,4319.7,12.68359801]
[1757006220181,1e-08,4319.8,4319.7,6.82327557]
[1757006220182,0.09900001,4319.8,4319.7,6.82327557]
[1757006220393,0.59230001,4319.8,4319.7,6.82227557]
[1757006220801,0.09900001,4319.8,4319.7,6.82227557]
[1757006220983,0.09900001,4319.8,4319.7,8.32203998]
[1757006221520,1e-08,4319.8,4319.7,8.32203998]
[1757006225930,0.09900001,4319.8,4319.7,8.32203998]
[1757006226732,0.59230001,4319.8,4319.7,8.32203998]
[1757006227104,0.09900001,4319.8,4319.7,8.32203998]
[1757006227304,1e-08,4319.8,4319.7,8.32203998]
[1757006228824,1e-08,4319.8,4319.7,8.75893998]
[1757006229329,1e-08,4319.8,4319.7,8.32203998]
[1757006229922,0.09900001,4319.8,4319.7,8.32203998]
[1757006230335,0.58190001,4319.8,4319.7,8.32203998]
[1757006230634,0.58190001,4319.8,4319.7,2.31497557]
[1757006230635,0.85310001,4319.8,4319.7,2.31497557]
[1757006232533,0.10000001,4319.8,4319.7,2.31497557]
[1757006233254,0.00100001,4319.8,4319.7,7.06717557]
[1757006233448,0.00100001,4319.8,4319.7,7.66607557]
[1757006234023,0.00100001,4319.8,4319.7,9.67161998]
[1757006234554,0.00100001,4319.8,4319.7,10.13981998]
[1757006234754,0.00100001,4319.8,4319.7,9.67161998]
[1757006235148,0.00100001,4319.8,4319.7,9.23471998]
[1757006235365,0.00100001,4319.8,4319.7,8.93241998]
[1757006235729,0.00100001,4319.8,4319.7,15.53194242]
[1757006239978,0.00100001,4319.8,4319.7,9.67161998]
[1757006241158,0.00100001,4319.8,4319.7,15.09504242]
[1757006241347,0.00100001,4319.8,4319.7,15.53194242]
[1757006242478,0.00100001,4319.8,4319.7,13.14241997]
[1757006243665,0.58290001,4319.8,4319.7,6.64097556]
[1757006244372,0.58290001,4319.8,4319.7,6.52497556]
[1757006246573,0.10000001,4319.8,4319.7,6.52497556]
[1757006248770,0.00100001,4319.8,4319.7,6.52497556]
[1757006248957,0.00100001,4319.8,4319.7,7.26417556]
[1757006249172,0.00100001,4319.8,4319.7,8.92683997]
[1757006249508,0.00100001,4319.8,4319.7,8.18763997]
[1757006249667,0.58290001,4319.8,4319.7,6.52497556]
[1757006249861,0.58290001,4319.8,4319.7,6.64097556]
[1757006250060,0.00100001,4319.8,4319.7,6.64097556]
[1757006250752,0.00100001,4319.8,4319.7,7.38017556]
[1757006251689,0.00100001,4319.8,4319.7,7.84837556]
[1757006251896,0.00100001,4319.8,4319.7,9.85224997]
[1757006252605,0.58290001,4319.8,4319.7,6.64097556]
[1757006252826,0.58290001,4319.8,4319.7,6.52497556]
[1757006256298,0.10000001,4319.8,4319.7,6.52497556]
[1757006257111,0.58290001,4319.8,4319.7,6.52497556]
[1757006257296,0.58290001,4319.8,4319.7,2.31497557]
[1757006257474,0.58290001,4319.8,4319.6,0.004]
[1757006257675,3.42433919,4319.7,4319.6,0.004]
[1757006257874,1.08612225,4319.7,4319.6,0.004]
[1757006258129,10.55328606,4319.7,4319.6,0.004]
[1757006258309,12.84502026,4319.7,4319.6,0.004]
[1757006260571,13.39742208,4319.7,4319.6,0.004]
[1757006260779,13.13308136,4319.7,4319.6,0.004]
[1757006261806,12.84502026,4319.7,4319.6,0.004]
[1757006262613,12.96102026,4319.7,4319.6,0.004]
[1757006263174,2.31518996,4319.3,4319.2,0.004]
[1757006263485,2.31518996,4319.3,4318.8,0.004]
[1757006263486,3.0,4319.2,4318.8,0.004]
[1757006263690,12.43860417,4318.9,4318.8,0.004]
[1757006264091,13.17100417,4318.9,4318.8,0.004]
[1757006265697,13.28571556,4318.9,4318.8,0.004]
[1757006265878,14.5226317,4318.9,4318.8,0.004]
[1757006267187,14.40792031,4318.9,4318.8,0.004]
[1757006267386,18.30292031,4318.9,4318.8,0.004]
[1757006267811,7.23192052,4318.9,4318.8,0.004]
[1757006267986,11.12692052,4318.9,4318.8,0.004]
[1757006268401,10.66402052,4318.9,4318.8,0.004]
[1757006270209,6.76902052,4318.9,4318.8,0.004]
[1757006270423,10.66402052,4318.9,4318.8,0.004]
[1757006270914,7.23192052,4318.9,4318.8,0.004]
[1757006271114,11.39642052,4318.9,4318.8,0.004]
[1757006271625,11.12692052,4318.9,4318.8,0.004]
[1757006273121,11.39642052,4318.9,4318.8,0.004]
[1757006281398,11.12692052,4318.9,4318.8,0.004]
[1757006283517,11.12692052,4318.9,4318.8,0.7825]
[1757006283518,6.66832052,4318.9,4318.8,0.7825]
[1757006283729,4.011,4318.9,4318.8,1.2385]
[1757006283951,7.011,4318.9,4318.8,1.2385]
[1757006284247,3.116,4318.9,4318.8,1.2385]
[1757006284451,4.011,4318.9,4318.8,1.2385]
[1757006284615,1.706,4319.1,4318.8,1.2385]
[1757006284819,1.706,4319.1,4318.9,0.9265]
[1757006284820,3.895,4319.0,4318.9,0.9265]
[1757006285053,4.011,4319.0,4318.9,1.2345]
[1757006285831,6.32635077,4319.0,4318.9,1.2345]
[1757006286016,6.32635077,4319.0,4318.8,0.004]
[1757006286017,5.31540438,4318.9,4318.8,0.004]
[1757006286352,13.55677969,4318.9,4318.8,0.004]
[1757006287153,14.11867969,4318.9,4318.8,0.004]
[1757006287648,13.65577969,4318.9,4318.8,0.004]
[1757006287862,10.8451799,4318.9,4318.8,0.004]
[1757006288021,10.8428799,4318.9,4318.8,0.004]
[1757006288351,11.3057799,4318.9,4318.8,0.004]
[1757006288567,10.5442799,4318.9,4318.8,0.004]
[1757006289021,10.6432799,4318.9,4318.8,0.004]
[1757006289233,11.0974799,4318.9,4318.8,0.004]
[1757006289583,5.31551161,4318.7,4318.6,0.004]
[1757006289728,10.38950515,4318.7,4318.6,0.004]
[1757006290067,2.31561884,4318.5,4318.4,1e-08]
[1757006290241,2.31583335,4318.1,4317.1,0.4358]
[1757006290443,23.48187451,4318.1,4317.1,0.4358]
[1757006290650,25.36370866,4318.1,4317.1,0.4358]
[1757006290830,25.45658063,4318.1,4317.1,0.004]
[1757006291029,24.70108063,4318.1,4317.2,0.4569]
[1757006291230,24.70108063,4318.1,4317.5,0.4569]
[1757006291433,24.70108063,4318.1,4317.6,0.4318]
[1757006292149,24.70108063,4318.1,4317.5,0.4569]
[1757006292361,20.80708063,4318.1,4318.0,0.7227]
[1757006292550,24.70108063,4318.1,4318.0,0.7227]
[1757006292958,24.70108063,4318.1,4318.0,0.2909]
[1757006293264,24.70108063,4318.1,4318.0,0.004]
[1757006293635,24.80008063,4318.1,4318.0,0.004]
[1757006293857,24.70108063,4318.1,4318.0,0.7227]
[1757006295169,24.70108063,4318.1,4318.0,0.004]
[1757006296067,25.25428063,4318.1,4318.0,0.004]
[1757006296248,25.52548063,4318.1,4318.0,0.004]
[1757006296966,25.25428063,4318.1,4318.0,0.004]
[1757006299440,24.80008063,4318.1,4318.0,0.004]
[1757006301441,24.80008063,4318.1,4318.0,0.2909]
[1757006301442,13.90058084,4318.1,4318.0,0.2909]
[1757006301652,13.90058084,4318.1,4318.0,1.1796]
[1757006301875,16.45970532,4318.1,4318.0,1.1796]
[1757006303466,10.157,4318.1,4318.0,1.1796]
[1757006303656,14.051,4318.1,4318.0,1.1796]
[1757006303851,16.36683335,4318.1,4318.0,1.1796]
[1757006304457,14.051,4318.1,4318.0,1.1796]
[1757006304775,16.36683335,4318.1,4318.0,1.1796]
[1757006305584,14.051,4318.1,4318.0,1.1796]
[1757006306858,16.36683335,4318.1,4318.0,1.1796]
[1757006307881,14.051,4318.1,4318.0,1.1796]
[1757006308588,16.36683335,4318.1,4318.0,1.1796]
[1757006308892,14.051,4318.1,4318.0,1.1796]
[1757006309568,16.36683335,4318.1,4318.0,1.1796]
[1757006309877,14.051,4318.1,4318.0,1.1796]
[1757006310773,16.36683335,4318.1,4318.0,1.1796]
[1757006310988,16.36683335,4318.1,4318.0,0.004]
[1757006311155,18.23519003,4318.1,4318.0,0.004]
[1757006311688,18.23519003,4318.1,4318.0,0.7227]
[1757006311891,16.36683335,4318.1,4318.0,0.7227]
[1757006314061,16.46583335,4318.1,4318.0,0.004]
[1757006314266,17.19123335,4318.1,4318.0,0.004]
[1757006315193,17.28410531,4318.1,4318.0,0.004]
[1757006315397,19.55201328,4318.1,4318.0,0.004]
[1757006316801,19.28081328,4318.1,4318.0,0.004]
[1757006319491,18.82661328,4318.1,4318.0,0.004]
[1757006319887,19.30351328,4318.1,4318.0,0.004]
[1757006321110,18.82661328,4318.1,4318.0,0.004]
[1757006325524,24.69653325,4318.1,4318.0,0.004]
[1757006329429,24.59753325,4318.1,4318.0,0.004]
[1757006330528,25.17513325,4318.1,4318.0,0.004]
[1757006330737,25.46319435,4318.1,4318.0,0.004]
[1757006331631,25.46319435,4318.1,4317.5,0.004]
[1757006331632,5.31588698,4318.0,4317.5,1e-08]
[1757006331804,17.05594147,4317.6,4317.5,1e-08]
[1757006332002,21.65440257,4317.6,4317.5,1e-08]
[1757006332299,21.65440257,4317.6,4316.2,0.4637]
[1757006332300,2.3164771,4316.9,4316.8,1e-08]
[1757006332505,16.90139707,4316.9,4316.8,1e-08]
[1757006332718,19.12327728,4316.9,4316.8,1e-08]
[1757006333404,9.06125731,4316.9,4316.8,0.30630001]
[1757006333745,11.0314771,4316.9,4316.8,1.24030001]
[1757006334044,4.823,4316.9,4316.8,1.24030001]
[1757006334209,11.0314771,4316.9,4316.8,1.24030001]
[1757006335119,4.707,4316.9,4316.8,1.24030001]
[1757006335327,8.715,4316.9,4316.8,1.24030001]
[1757006335831,5.715,4316.9,4316.8,1.24030001]
[1757006336438,8.0314771,4316.9,4316.8,1.24030001]
[1757006336605,5.715,4316.9,4316.8,1.24030001]
[1757006336807,8.0314771,4316.9,4316.8,1.24030001]
[1757006337423,5.715,4316.9,4316.8,1.24030001]
[1757006337639,1.823,4316.9,4316.8,1.24030001]
[1757006337826,5.715,4316.9,4316.8,1.24030001]
[1757006338524,5.715,4316.9,4316.8,1.24430001]
[1757006343340,1.823,4316.9,4316.8,1.24430001]
[1757006343552,5.599,4316.9,4316.8,3.68566077]
[1757006343744,1.707,4316.9,4316.8,3.68566077]
[1757006343940,5.599,4316.9,4316.8,3.68566077]
[1757006344351,5.599,4316.9,4316.8,9.55558074]
[1757006344557,5.599,4316.9,4316.8,3.68566077]